bitfinex/quotes_SOLUSD_20220216
["timestamp","ask_amount","ask_price","bid_price","bid_amount"]
[1645037463228,0.62780542,99.792,99.75,29.5626]
[1645037464831,0.62780542,99.792,99.751,100.9]
[1645037465031,0.62780542,99.792,99.76,15.0303]
[1645037465232,0.62780542,99.792,99.76,29.5603]
[1645037466531,0.62780542,99.792,99.761,2.30581732]
[1645037466732,0.62780542,99.792,99.77,15.0287]
[1645037466934,0.62780542,99.792,99.77,29.5587]
[1645037467334,0.62780542,99.792,99.771,100.9]
[1645037468132,0.62780542,99.792,99.78,15.0275]
[1645037468935,0.62780542,99.792,99.781,100.9]
[1645037469136,0.62780542,99.792,99.782,3.03219997]
[1645037470345,0.00780542,99.792,99.782,5.33801729]
[1645037470738,0.00780542,99.792,99.782,3.03219997]
[1645037471174,0.00780542,99.792,99.742,2.30581732]
[1645037471577,0.00780542,99.792,99.75,15.0316]
[1645037471778,0.00780542,99.792,99.782,3.0351927]
[1645037472375,0.00780542,99.792,99.783,3.03219997]
[1645037474279,0.00780542,99.792,99.782,3.0351927]
[1645037474481,0.00780542,99.792,99.784,3.03219997]
[1645037474677,0.00780542,99.792,99.782,3.0351927]
[1645037474877,0.00780542,99.792,99.782,9.27e-05]
[1645037475277,0.50847822,99.799,99.782,9.27e-05]
[1645037475477,0.32793862,99.792,99.782,9.27e-05]
[1645037480883,0.33641684,99.799,99.782,9.27e-05]
[1645037484086,38.4235,99.8,99.782,9.27e-05]
[1645037484087,23.3862,99.8,99.782,9.27e-05]
[1645037487086,38.4232,99.8,99.782,9.27e-05]
[1645037491316,39.84814762,99.8,99.782,9.27e-05]
[1645037491512,38.4232,99.8,99.782,9.27e-05]
[1645037497321,39.84814762,99.8,99.782,9.27e-05]
[1645037497523,140.74814762,99.8,99.782,9.27e-05]
[1645037498821,1.42494762,99.797,99.782,9.27e-05]
[1645037499824,1.42494762,99.798,99.782,9.27e-05]
[1645037500228,1.42494762,99.799,99.782,9.27e-05]
[1645037500423,24.81114762,99.8,99.782,9.27e-05]
[1645037500623,23.3862,99.8,99.782,9.27e-05]
[1645037501031,0.4627966,99.801,99.782,9.27e-05]
[1645037502027,0.53171916,99.81,99.782,9.27e-05]
[1645037507738,0.5701868,99.818,99.782,9.27e-05]
[1645037520349,1.99513442,99.818,99.782,9.27e-05]
[1645037520550,1.42494762,99.815,99.782,9.27e-05]
[1645037520949,1.42494762,99.814,99.782,9.27e-05]
[1645037521151,1.42494762,99.813,99.782,9.27e-05]
[1645037521451,1.42494762,99.813,99.755,23.3277]
[1645037521649,15.0358,99.81,99.755,23.3277]
[1645037521851,16.46074762,99.81,99.755,23.3277]
[1645037522050,1.42494762,99.809,99.755,23.3277]
[1645037522255,1.42494762,99.808,99.755,23.3277]
[1645037523353,1.42494762,99.808,99.73,15.0354]
[1645037523551,1.42494762,99.806,99.731,24.6347]
[1645037524152,1.42494762,99.805,99.731,24.6347]
[1645037524853,1.42494762,99.806,99.731,24.6347]
[1645037525254,15.0373,99.8,99.731,24.6347]
[1645037526856,16.46224762,99.8,99.731,24.6347]
[1645037527057,117.36224762,99.8,99.731,24.6347]
[1645037527255,117.36224762,99.8,99.721,27.18424923]
[1645037527457,1.42494762,99.799,99.721,27.18424923]
[1645037527659,1.42494762,99.798,99.731,2.31226002]
[1645037527857,15.0373,99.8,99.731,2.31226002]
[1645037529460,1.42494762,99.805,99.731,2.31226002]
[1645037529961,1.42494762,99.806,99.731,2.31226002]
[1645037530163,1.42494762,99.804,99.731,2.31226002]
[1645037530364,1.42494762,99.806,99.731,2.31226002]
[1645037531780,23.2995,99.807,99.731,2.31226002]
[1645037532181,23.2995,99.807,99.737,3.0341056]
[1645037532783,23.2995,99.807,99.738,23.5745]
[1645037533584,0.13703178,99.812,99.75,14.53]
[1645037533784,0.13703178,99.812,99.751,24.6147]
[1645037533985,0.13703178,99.812,99.751,26.92696002]
[1645037534390,0.13703178,99.812,99.752,2.31226002]
[1645037535989,0.13703178,99.812,99.76,15.0308]
[1645037536585,0.13703178,99.812,99.807,0.300779]
[1645037543896,0.13703178,99.812,99.808,3.03219997]
[1645037546296,0.20721858,99.818,99.808,3.03219997]
[1645037546498,0.48128214,99.818,99.808,3.03219997]
[1645037549799,0.48128214,99.818,99.807,0.300779]
[1645037552199,1.20721858,99.818,99.807,0.300779]
[1645037557607,1.20721858,99.818,99.808,3.03219997]
[1645037571229,1.20721858,99.818,99.809,3.03219997]
[1645037572450,1.20721858,99.818,99.81,3.03219997]
[1645037578656,0.54818592,99.82,99.811,87.32521908]
[1645037579056,0.54818592,99.82,99.812,2.32521908]
[1645037581266,0.54818592,99.82,99.81,3.03219997]
[1645037581867,0.54818592,99.82,99.811,2.32521908]
[1645037584766,0.54818592,99.82,99.811,103.22521908]
[1645037585169,0.54818592,99.82,99.812,2.32521908]
[1645037585367,0.54818592,99.82,99.81,3.03219997]
[1645037586769,0.00818592,99.82,99.81,3.03219997]
[1645037586972,0.00818592,99.82,99.811,103.22521908]
[1645037587370,0.00818592,99.82,99.812,2.32521908]
[1645037589676,0.00027408,99.825,99.82,0.29255308]
[1645037589878,0.4952436,99.844,99.822,116.0]
[1645037590078,0.4952436,99.844,99.823,100.9]
[1645037590079,0.76699568,99.839,99.823,100.9]
[1645037590385,0.76699568,99.839,99.831,100.9]
[1645037590581,0.76699568,99.839,99.832,3.03219997]
[1645037590778,0.00699568,99.839,99.832,5.35741905]
[1645037590978,0.2388664,99.852,99.835,100.9]
[1645037591185,0.53289504,99.839,99.835,22.8789]
[1645037591482,1.42494762,99.906,99.837,100.9]
[1645037591686,1.42494762,99.906,99.841,100.9]
[1645037591882,1.42494762,99.915,99.843,100.9]
[1645037592084,0.92494762,99.915,99.847,100.9]
[1645037592305,1.38087272,99.934,99.86,14.53]
[1645037592489,0.49639248,99.893,99.87,14.53]
[1645037593689,0.49639248,99.893,99.88,15.0128]
[1645037593888,0.49639248,99.893,99.861,24.3864]
[1645037594191,0.49639248,99.893,99.851,24.4956]
[1645037594988,0.49639248,99.893,99.86,15.016]
[1645037595992,0.49639248,99.893,99.87,29.5441]
[1645037596194,0.49639248,99.893,99.88,14.53]
[1645037597094,0.49639248,99.893,99.88,29.5424]
[1645037598295,0.4559251,99.934,99.89,15.0134]
[1645037599716,0.4559251,99.934,99.891,23.3888]
[1645037599915,0.4559251,99.934,99.9,15.0122]
[1645037602617,0.4559251,99.934,99.924,3.0341056]
[1645037602818,0.4559251,99.934,99.924,5.6e-06]
[1645037606831,100.9,99.929,99.924,5.6e-06]
[1645037607031,15.0248,99.89,99.801,22.6498]
[1645037607227,100.9,99.888,99.801,22.6498]
[1645037608629,15.0253,99.88,99.81,15.0244]
[1645037610030,100.9,99.879,99.81,15.0244]
[1645037610232,15.0272,99.87,99.81,15.0244]
[1645037611530,14.734846,99.87,99.81,15.0244]
[1645037611731,10.734846,99.87,99.81,15.0244]
[1645037613336,15.0256,99.88,99.81,15.0244]
[1645037614739,15.0256,99.88,99.79,50.0841]
[1645037614740,15.0256,99.88,99.79,15.0281]
[1645037614940,35.9156,99.88,99.771,546.14780619]
[1645037615339,100.9,99.879,99.771,546.14780619]
[1645037615541,15.0314,99.85,99.771,546.14780619]
[1645037616641,15.0314,99.85,99.77,15.0309]
[1645037617443,15.0282,99.86,99.79,15.0292]
[1645037617845,23.5821,99.868,99.791,2.32459518]
[1645037618446,23.0821,99.868,99.791,2.32459518]
[1645037618849,23.0821,99.868,99.8,15.0262]
[1645037619050,23.0821,99.868,99.801,22.6419]
[1645037619248,23.0821,99.868,99.801,24.96649518]
[1645037619448,100.9,99.889,99.802,103.22459518]
[1645037619648,23.0993,99.888,99.802,2.32459518]
[1645037619852,23.0993,99.888,99.803,2.32459518]
[1645037620948,15.0253,99.88,99.81,15.0257]
[1645037621350,15.0253,99.88,99.811,2.32459518]
[1645037622952,15.0253,99.88,99.82,15.0243]
[1645037623153,15.0253,99.88,99.821,23.7042]
[1645037626580,23.0993,99.888,99.821,23.7042]
[1645037626978,23.0993,99.888,99.83,15.0231]
[1645037627281,15.2005,99.927,99.831,100.9]
[1645037627479,15.2005,99.927,99.831,103.22459518]
[1645037627679,22.7912,99.928,99.831,103.22459518]
[1645037628378,22.7912,99.928,99.85,15.02]
[1645037629380,22.7912,99.928,99.851,100.9]
[1645037629580,22.7912,99.928,99.851,103.22459518]
[1645037629781,22.7912,99.928,99.87,15.0167]
[1645037630381,0.4532137,99.944,99.871,100.9]
[1645037630581,0.4532137,99.944,99.872,124.113]
[1645037630782,0.4532137,99.944,99.872,126.43759518]
[1645037630981,0.4532137,99.944,99.873,2.32459518]
[1645037631881,0.4532137,99.944,99.881,100.9]
[1645037632280,0.4532137,99.944,99.882,2.32459518]
[1645037633283,0.4532137,99.944,99.89,15.0128]
[1645037640590,0.4532137,99.944,99.851,2.51306915]
[1645037641997,0.4532137,99.944,99.86,15.0176]
[1645037642192,0.4532137,99.944,99.861,24.5132]
[1645037642492,0.4532137,99.944,99.861,26.83779518]
[1645037642692,0.4532137,99.944,99.862,103.22459518]
[1645037643091,0.4532137,99.944,99.863,2.32459518]
[1645037643899,0.4532137,99.944,99.881,100.9]
[1645037644097,0.4532137,99.944,99.89,14.53]
[1645037644698,0.4532137,99.944,99.891,100.9]
[1645037645097,0.4532137,99.944,99.892,2.32459518]
[1645037645996,0.4532137,99.944,99.901,100.9]
[1645037646498,0.4532137,99.944,99.9,14.53]
[1645037646898,0.4532137,99.944,99.91,15.0096]
[1645037652430,0.4532137,99.944,99.911,100.9]
[1645037652630,0.4532137,99.944,99.92,15.0085]
[1645037661837,0.4532137,99.944,99.91,15.0111]
[1645037662037,0.4532137,99.944,99.892,2.32459518]
[1645037662440,0.4532137,99.944,99.881,2.32459518]
[1645037663037,0.4532137,99.944,99.9,15.0128]
[1645037664941,0.4532137,99.944,99.881,2.32459518]
[1645037665142,0.4532137,99.944,99.865,2.32459518]
[1645037665840,0.4532137,99.944,99.87,15.0161]
[1645037669863,15.0178,99.94,99.87,15.0161]
[1645037670061,100.9,99.939,99.87,15.0161]
[1645037671666,100.9,99.939,99.86,15.0187]
[1645037675366,0.4532137,99.944,99.86,15.0187]
[1645037675564,0.4532137,99.944,99.87,15.0166]
[1645037675766,0.4532137,99.944,99.871,100.9]
[1645037675964,0.4532137,99.944,99.871,103.22459518]
[1645037676164,0.4532137,99.944,99.872,2.32459518]
[1645037676866,0.4532137,99.944,99.88,15.0132]
[1645037677303,0.4532137,99.944,99.881,2.32459518]
[1645037678766,0.4532137,99.944,99.862,2.32459518]
[1645037679565,0.4532137,99.944,99.851,2.51306915]
[1645037680264,15.0183,99.94,99.86,15.0187]
[1645037680469,0.4532137,99.944,99.86,15.0187]
[1645037680869,0.4532137,99.944,99.861,103.22459518]
[1645037681066,0.4532137,99.944,99.861,2.32459518]
[1645037681267,0.4532137,99.944,99.862,2.32459518]
[1645037681868,0.4532137,99.944,99.88,15.0125]
[1645037682071,0.4532137,99.944,99.88,29.5425]
[1645037684799,0.4532137,99.944,99.88,14.53]
[1645037684971,0.4532137,99.944,99.87,15.0173]
[1645037685869,0.4532137,99.944,99.871,2.32459518]
[1645037686069,0.4532137,99.944,99.88,15.0158]
[1645037690878,15.0174,99.95,99.87,29.5474]
[1645037691072,99.59112131,99.949,99.87,29.5474]
[1645037692474,100.9,99.959,99.871,2.32459518]
[1645037692878,5.69655873,99.958,99.88,15.0156]
[1645037693279,100.9,99.959,99.88,15.0156]
[1645037693478,100.9,99.959,99.88,17.34019518]
[1645037693878,0.18587432,99.97,99.88,17.34019518]
[1645037694079,0.18587432,99.97,99.89,14.53]
[1645037694279,0.18587432,99.97,99.91,15.0105]
[1645037694679,0.18587432,99.97,99.91,24.23509518]
[1645037696380,0.18587432,99.97,99.91,17.33509518]
[1645037697580,0.18587432,99.97,99.9,15.0128]
[1645037712324,1.42003605,99.952,99.9,15.0128]
[1645037712923,1.42003605,99.952,99.893,2.32459518]
[1645037713123,1.42003605,99.951,99.893,2.32459518]
[1645037715227,1.42003605,99.95,99.891,2.32459518]
[1645037716031,1.42003605,99.949,99.891,2.32459518]
[1645037717231,1.42003605,99.948,99.891,2.32459518]
[1645037717431,1.42003605,99.948,99.88,15.0148]
[1645037718233,1.42003605,99.947,99.88,15.0148]
[1645037719034,1.42003605,99.944,99.88,15.0148]
[1645037719435,1.42003605,99.943,99.88,15.0148]
[1645037720035,1.42003605,99.942,99.88,15.0148]
[1645037720436,1.42003605,99.942,99.881,2.32459518]
[1645037721843,100.9,99.959,99.881,2.32459518]
[1645037721844,1.42003605,99.94,99.881,2.32459518]
[1645037722141,1.42003605,99.916,99.81,14.53]
[1645037722340,1.42003605,99.91,99.798,5.22656669]
[1645037722549,0.92003605,99.901,99.798,5.22656669]
[1645037722739,0.92003605,99.897,99.788,15.1165]
[1645037722940,100.9,99.915,99.813,100.9]
[1645037723141,100.9,99.899,99.83,15.0233]
[1645037723340,50.0783,99.92,99.83,15.0233]
[1645037723540,106.59823121,99.919,99.83,15.0233]
[1645037723943,100.9,99.917,99.83,15.0233]
[1645037724344,15.0223,99.9,99.84,15.022]
[1645037726072,2.85782802,99.937,99.817,2.32459518]
[1645037726273,2.85782802,99.953,99.851,8.73306915]
[1645037726472,100.9,99.957,99.851,8.73306915]
[1645037726874,100.9,99.955,99.851,8.73306915]
[1645037727071,100.9,99.953,99.851,8.73306915]
[1645037727270,100.9,99.953,99.851,2.51306915]
[1645037727672,100.9,99.951,99.851,9.63960815]
[1645037727872,100.9,99.939,99.86,15.0189]
[1645037729377,50.0649,99.95,99.86,15.0189]
[1645037729577,50.23937432,99.97,99.861,100.9]
[1645037729776,5.69590001,99.969,99.88,15.0151]
[1645037730176,11.30754124,99.968,99.88,15.0151]
[1645037730378,100.9,99.967,99.88,15.0151]
[1645037730575,100.9,99.949,99.851,9.63960815]
[1645037730974,100.9,99.947,99.851,9.63960815]
[1645037731475,100.9,99.945,99.851,9.63960815]
[1645037731874,50.0653,99.95,99.86,15.0184]
[1645037732077,2.85782802,99.963,99.86,15.0184]
[1645037732273,0.18587432,99.97,99.86,15.0184]
[1645037732274,2.85782802,99.969,99.86,15.0184]
[1645037732475,0.18587432,99.97,99.861,103.22459518]
[1645037732975,100.9,99.968,99.862,2.32459518]
[1645037733174,100.9,99.968,99.861,100.9]
[1645037733373,100.9,99.966,99.86,14.53]
[1645037733574,15.0133,99.96,99.89,15.013]
[1645037733774,11.3080504,99.967,99.89,15.013]
[1645037733973,100.9,99.964,99.87,50.0431]
[1645037734374,11.3080504,99.963,99.87,50.0431]
[1645037734778,0.18587432,99.97,99.87,50.0431]
[1645037734975,15.0149,99.95,99.88,15.0157]
[1645037741182,15.0131,99.96,99.88,15.0157]
[1645037746889,15.0131,99.96,99.881,100.9]
[1645037747088,15.19737432,99.97,99.9,15.0115]
[1645037747690,0.18587432,99.97,99.901,2.32459518]
[1645037748898,0.18587432,99.97,99.92,15.0096]
[1645037750601,0.18587432,99.97,99.91,15.0113]
[1645037750602,15.19777432,99.97,99.91,15.0113]
[1645037750800,15.19777432,99.97,99.89,64.5631]
[1645037751299,15.19777432,99.97,99.89,14.53]
[1645037752900,15.0135,99.96,99.9,15.0126]
[1645037759905,15.19777432,99.97,99.9,15.0126]
[1645037768620,15.19777432,99.97,99.901,2.32459518]
[1645037770814,15.19777432,99.97,99.91,15.0111]
[1645037771516,0.18587432,99.97,99.91,15.0111]
[1645037771720,0.18587432,99.97,99.911,103.22459518]
[1645037771917,0.18587432,99.97,99.92,15.0075]
[1645037773122,0.18587432,99.97,99.91,15.0111]
[1645037773318,0.18587432,99.97,99.9,14.53]
[1645037773519,15.19807432,99.97,99.9,14.53]
[1645037774119,100.9,99.969,99.9,14.53]
[1645037774520,0.18587432,99.97,99.9,14.53]
[1645037775823,15.0143,99.96,99.9,14.53]
[1645037776825,100.9,99.959,99.881,2.32332691]
[1645037777026,0.18587432,99.97,99.881,2.32332691]
[1645037777027,100.9,99.949,99.881,2.32332691]
[1645037777229,15.0161,99.95,99.881,2.32332691]
[1645037778131,15.0161,99.95,99.89,15.0141]
[1645037778728,15.0135,99.96,99.89,15.0141]
[1645037779029,15.0135,99.96,99.89,29.5441]
[1645037779228,0.18587432,99.97,99.89,29.5441]
[1645037779432,0.18587432,99.97,99.891,2.32332691]
[1645037779631,0.18587432,99.97,99.9,15.0117]
[1645037780831,15.19767432,99.97,99.9,15.0117]
[1645037787260,100.9,99.969,99.891,2.32332691]
[1645037787561,100.9,99.949,99.863,2.32332691]
[1645037787959,15.016,99.95,99.863,2.32332691]
[1645037788962,15.016,99.95,99.88,15.0155]
[1645037790764,100.9,99.949,99.88,15.0155]
[1645037790966,15.016,99.95,99.88,15.0155]
[1645037791165,100.9,99.949,99.88,15.0155]
[1645037791666,15.016,99.95,99.88,15.0155]
[1645037791866,15.016,99.95,99.88,17.33882691]
[1645037792066,15.016,99.95,99.88,31.86882691]
[1645037792267,15.19907432,99.97,99.88,31.86882691]
[1645037792866,15.19907432,99.97,99.881,100.9]
[1645037793066,15.19907432,99.97,99.9,15.0111]
[1645037794167,15.07082296,99.97,99.9,29.5411]
[1645037796366,15.0137,99.96,99.89,15.0142]
[1645037796970,15.0137,99.96,99.891,2.32332691]
[1645037799675,15.0137,99.96,99.9,15.0127]
[1645037799875,15.38384864,99.97,99.9,15.0127]
[1645037800074,0.37174864,99.97,99.9,15.0127]
[1645037800277,0.37174864,99.97,99.901,2.32332691]
[1645037801875,0.37174864,99.97,99.91,15.01]
[1645037802276,0.37174864,99.97,99.911,2.32332691]
[1645037809806,0.37174864,99.97,99.92,15.0097]
[1645037810007,0.37174864,99.97,99.911,2.32332691]
[1645037810206,0.37174864,99.97,99.9,14.53]
[1645037810606,15.38394864,99.97,99.89,50.0322]
[1645037811006,15.38394864,99.97,99.891,2.32332691]
[1645037811813,15.38394864,99.97,99.9,15.012]
[1645037814611,15.38394864,99.97,99.901,2.32332691]
[1645037814812,0.37174864,99.97,99.901,2.32332691]
[1645037815011,0.37174864,99.97,99.91,15.0111]
[1645037820422,0.37174864,99.97,99.911,100.9]
[1645037820722,0.37174864,99.97,99.92,15.0072]
[1645037821023,0.37174864,99.97,99.92,29.5372]
[1645037821222,0.37174864,99.97,99.921,2.32332691]
[1645037821420,0.37174864,99.97,99.921,103.22332691]
[1645037821823,0.37174864,99.97,99.93,15.007]
[1645037822125,0.37174864,99.97,99.931,2.32332691]
[1645037823721,0.37174864,99.97,99.94,15.0054]
[1645037828230,0.37174864,99.97,99.93,15.008]
[1645037832636,0.37174864,99.97,99.931,2.32332691]
[1645037832835,0.37174864,99.97,99.94,15.0059]
[1645037835171,0.37174864,99.97,99.931,7.51332691]
[1645037835172,0.456633,100.04,99.973,0.78439992]
[1645037835470,0.4509982,100.09,99.973,0.78439992]
[1645037835471,4.25458067,100.12,100.05,229.9]
[1645037835668,1.53810146,100.15,100.07,282.54]
[1645037835866,0.23240146,100.15,100.08,14.53]
[1645037836068,0.23240146,100.15,100.08,35.12634982]
[1645037836267,0.5805999,100.18,100.08,50.10974982]
[1645037836466,2.02910384,100.21,100.11,181.64]
[1645037836467,1.52910384,100.21,100.11,181.64]
[1645037836666,0.92828828,100.19,100.14,181.64]
[1645037836968,1.33555372,100.19,100.15,14.53]
[1645037837166,1.33555372,100.19,100.15,203.032]
[1645037837368,1.33555372,100.19,100.16,2.32332691]
[1645037837570,1.33555372,100.19,100.17,17.56219997]
[1645037837769,1.33555372,100.19,100.17,17.81219997]
[1645037838368,1.33555372,100.19,100.17,20.13552688]
[1645037838770,0.91606472,100.19,100.18,181.64]
[1645037838969,0.91606472,100.19,100.18,199.20219997]
[1645037838970,0.85726016,100.19,100.18,199.20219997]
[1645037839171,1.5911027,100.21,100.19,58.0]
[1645037839370,0.8822758,100.21,100.2,14.78]
[1645037839571,0.9613657,100.23,100.2,14.78]
[1645037839769,1.55837842,100.23,100.2,14.78]
[1645037840369,1.55837842,100.23,100.21,3.03219997]
[1645037840572,1.55837842,100.23,100.22,14.53]
[1645037842776,1.55837842,100.23,100.22,10.287]
[1645037842974,1.55837842,100.23,100.21,3.03219997]
[1645037843175,1.55837842,100.23,100.19,14.53]
[1645037845280,1.56480954,100.23,100.19,14.53]
[1645037846276,1.56480954,100.23,100.19,12.03]
[1645037848381,1.56480954,100.23,100.2,0.25]
[1645037848579,1.56480954,100.23,100.21,3.03219997]
[1645037848781,1.56480954,100.23,100.22,14.53]
[1645037849382,1.56480954,100.23,100.22,14.78]
[1645037850481,2.02556982,100.24,100.22,14.78]
[1645037850686,2.02556982,100.24,100.23,3.03219997]
[1645037850882,2.02556982,100.24,100.23,17.81219997]
[1645037852686,2.5741011,100.24,100.23,17.81219997]
[1645037854188,2.5741011,100.24,100.23,14.53]
[1645037854394,2.5741011,100.24,100.19,14.53]
[1645037854589,2.5741011,100.24,100.16,14.53]
[1645037855392,2.5741011,100.24,100.17,0.25]
[1645037855589,2.5741011,100.24,100.18,14.53]
[1645037856591,103.4741011,100.24,100.18,14.53]
[1645037856795,103.4741011,100.24,100.17,0.25]
[1645037856995,103.4741011,100.24,100.16,0.25]
[1645037857793,118.4482011,100.24,100.16,0.25]
[1645037858095,17.5482011,100.24,100.16,0.25]
[1645037858294,17.5482011,100.24,100.15,0.25]
[1645037859092,17.5482011,100.24,100.12,4.99]
[1645037859297,14.9793,100.21,100.13,14.53]
[1645037859496,115.8793,100.21,100.11,14.53]
[1645037860497,116.37529088,100.21,100.11,14.53]
[1645037860699,116.37529088,100.21,100.11,16.85355816]
[1645037861317,131.22989088,100.21,100.11,16.85355816]
[1645037861916,131.22989088,100.21,100.12,0.25]
[1645037862117,116.37529088,100.21,100.12,0.25]
[1645037863306,115.87529088,100.21,100.11,0.25]
[1645037863703,115.87529088,100.21,100.1,19.522]
[1645037863903,1.38153771,100.2,100.1,19.522]
[1645037864102,100.9,100.16,100.1,14.53]
[1645037864306,14.9849,100.17,100.1,14.53]
[1645037864604,14.9849,100.17,100.1,19.523]
[1645037864803,14.9849,100.17,100.1,14.53]
[1645037865003,14.9849,100.17,100.1,16.85355816]
[1645037865403,14.9849,100.17,100.11,4.993]
[1645037865803,14.9849,100.17,100.09,14.53]
[1645037866006,1.38153771,100.18,100.1,100.9]
[1645037866204,1.38153771,100.19,100.12,2.32355816]
[1645037866404,1.38153771,100.19,100.13,14.78]
[1645037866604,1.87752859,100.21,100.13,14.78]
[1645037866805,1.87752859,100.21,100.14,2.32355816]
[1645037867004,1.87752859,100.21,100.14,16.85355816]
[1645037867203,16.85602859,100.21,100.14,14.53]
[1645037867406,100.9,100.2,100.12,16.85355816]
[1645037867603,102.28153771,100.2,100.12,17.10355816]
[1645037867807,102.28153771,100.2,100.12,14.78]
[1645037868004,102.28153771,100.2,100.12,0.25]
[1645037868207,102.28153771,100.2,100.09,14.53]
[1645037868406,1.38153771,100.19,100.11,0.25]
[1645037868612,1.38153771,100.19,100.08,380.78592349]
[1645037868914,1.38153771,100.17,100.08,380.78592349]
[1645037869415,14.986,100.16,100.08,380.78592349]
[1645037869617,14.986,100.16,100.08,395.31592349]
[1645037869919,14.986,100.16,100.08,14.53]
[1645037870316,115.886,100.16,100.08,14.53]
[1645037870517,14.986,100.16,100.08,14.53]
[1645037873019,115.886,100.16,100.08,14.53]
[1645037873321,115.886,100.16,100.06,16.85355816]
[1645037873520,117.26753771,100.16,100.06,16.85355816]
[1645037873724,131.79753771,100.16,100.06,2.32355816]
[1645037873922,130.12013271,100.16,100.04,14.53]
[1645037874122,130.12013271,100.16,100.04,16.85355816]
[1645037874322,14.9925,100.11,100.04,16.85355816]
[1645037874524,100.9,100.1,100.02,420.09386768]
[1645037874725,100.9,100.14,100.02,425.08986768]
[1645037874924,102.28153771,100.14,100.02,420.09386768]
[1645037875125,100.9,100.14,100.02,420.09386768]
[1645037875829,14.993,100.12,100.03,15.2415]
[1645037876024,14.993,100.12,100.04,19.525]
[1645037876230,14.993,100.12,100.04,16.85355816]
[1645037876528,14.993,100.12,100.05,0.25]
[1645037877129,14.993,100.12,100.04,16.85355816]
[1645037877329,14.993,100.12,100.02,420.09386768]
[1645037877732,14.993,100.12,100.02,425.08986768]
[1645037878130,14.993,100.12,100.03,0.25]
[1645037878531,115.893,100.12,100.03,2.32355816]
[1645037878934,115.893,100.12,100.02,432.76350952]
[1645037879130,115.893,100.12,100.02,29.5232]
[1645037879631,115.893,100.12,100.02,14.53]
[1645037883262,111.3599713,100.12,100.02,14.53]
[1645037885364,111.3599713,100.12,100.01,2.32355816]
[1645037885564,111.3599713,100.12,100.02,0.25]
[1645037887268,111.3599713,100.12,100.01,0.25]
[1645037887670,112.74150901,100.12,100.01,0.25]
[1645037887968,112.74150901,100.12,100.01,130.6751]
[1645037888170,10.4599713,100.12,100.02,4.996]
[1645037888369,1.38153771,100.14,100.03,14.53]
[1645037888772,1.38153771,100.13,100.03,14.53]
[1645037889570,115.8926,100.13,100.03,19.526]
[1645037889769,115.8926,100.13,100.04,0.25]
[1645037889971,115.8926,100.13,100.04,29.7709]
[1645037890770,115.8926,100.13,100.04,14.78]
[1645037890971,115.8926,100.13,100.04,0.25]
[1645037891169,117.27413771,100.13,100.04,0.25]
[1645037893371,192.71863771,100.13,100.01,14.53]
[1645037893571,100.9,100.09,100.01,14.53]
[1645037893772,100.9,100.09,99.99,14.53]
[1645037894176,100.9,100.09,99.991,4.998]
[1645037894378,100.9,100.09,99.99,14.53]
[1645037894972,115.8979,100.09,100.0,14.997]
[1645037895372,14.9979,100.09,100.0,14.997]
[1645037895772,115.8979,100.09,100.0,14.997]
[1645037895975,115.8979,100.09,99.99,29.5288]
[1645037896976,176.1679,100.09,99.99,14.53]
[1645037897174,183.02943771,100.09,99.97,29.5308]
[1645037897375,197.55943771,100.09,99.958,2.32355816]
[1645037897575,197.55943771,100.09,99.95,14.53]
[1645037897576,1.38153771,100.08,99.95,14.53]
[1645037897774,115.9041,100.05,99.964,2.32355816]
[1645037902176,176.1741,100.05,99.964,2.32355816]
[1645037902380,176.1741,100.05,99.942,2.32355816]
[1645037904481,15.0108,100.0,99.921,2.32355816]
[1645037904679,100.9,99.99,99.921,2.32355816]
[1645037905080,15.0108,100.0,99.921,2.32355816]
[1645037905281,100.9,100.0,99.921,2.32355816]
[1645037906179,115.9098,100.0,99.921,2.32355816]
[1645037906985,15.0098,100.0,99.921,2.32355816]
[1645037907181,115.9098,100.0,99.921,2.32355816]
[1645037909083,115.9098,100.0,99.91,14.53]
[1645037909485,115.9098,100.0,99.911,2.31766788]
[1645037911791,15.0098,100.0,99.92,15.0096]